{"text_format":"2","workbook":"xlsx","n_sheets":7,"sheets":["Főösszesítő","Munkanem összesítő","2.Bontás, építőanyagok újraha","15.Zsaluzás és állványozás","21.Irtás, föld- és sziklamunka","36.Vakolás és rabicolás","47.Felületképzés"],"not_rendered":{"charts":0,"images":0,"macros":0,"external_links":0,"defined_names":0,"comments":0,"pivot_tables":0},"unopened":[],"bounds":{"document_bytes":16777216,"sheet_cells":100000,"run_cost":"one","rows_first":2000,"rows_last":500,"rows_between":2000,"halvings":0,"cell_chars":16384,"cell_head_chars":4096},"cells_cut":0,"cells_raw":0,"read":"whole","date_system":"1900"}

{"sheet":"Főösszesítő","index":0,"n_rows":12,"n_cols":4,"rows_kept":12,"cut":false,"hidden":false,"merged":[[10,2,10,3],[11,2,11,3],[5,2,5,3],[6,2,6,3],[7,2,7,3],[8,2,8,3],[9,2,9,3],[0,0,0,3],[2,0,2,3]]}
[]
[]
["Költségvetés főösszesítő"]
["Megnevezés",null,"Anyagköltség","Díjköltség"]
["1 Építmény közvetlen költségei",null,{"$f":"'Munkanem összesítő'!C7","v":0},{"$f":"'Munkanem összesítő'!D7","v":0}]
["Nettó ajánlati ár: A+D",null,{"$f":"C5+D5","v":0}]
["Áfa összege (27%):",0.27,{"$f":"C6*0.27","v":0}]
["Bruttó ajánlati ár:",null,{"$f":"C6+C7","v":0}]
["Nettó tartalékkeret (5 %):",0.05,{"$f":"C6*0.05","v":0}]
["Áfa összege (27%):",0.27,{"$f":"C9*0.27","v":0}]
["Bruttó tartalékkeret:",null,{"$f":"C10+C9","v":0}]
["Tartalékkerettel növelt bruttó ajánlati ár:",null,{"$f":"C8+C11","v":0}]

{"sheet":"Munkanem összesítő","index":1,"n_rows":7,"n_cols":4,"rows_kept":7,"cut":false,"hidden":false,"merged":[]}
["Ssz.","Megnevezés","Anyagköltség","Díjköltség"]
["2","Bontás, építőanyagok újrahasznosítása",{"$f":"'2.Bontás, építőanyagok újraha'!H3","v":0},{"$f":"'2.Bontás, építőanyagok újraha'!I3","v":0}]
["15","Zsaluzás és állványozás",{"$f":"'15.Zsaluzás és állványozás'!H3","v":0},{"$f":"'15.Zsaluzás és állványozás'!I3","v":0}]
["21","Irtás, föld- és sziklamunka",{"$f":"'21.Irtás, föld- és sziklamunka'!H3","v":0},{"$f":"'21.Irtás, föld- és sziklamunka'!I3","v":0}]
["36","Vakolás és rabicolás",{"$f":"'36.Vakolás és rabicolás'!H10","v":0},{"$f":"'36.Vakolás és rabicolás'!I10","v":0}]
["47","Felületképzés",{"$f":"'47.Felületképzés'!H8","v":0},{"$f":"'47.Felületképzés'!I8","v":0}]
[null,"Összesen (HUF)",{"$f":"ROUND(SUM(C2:C6),0)","v":0},{"$f":"ROUND(SUM(D2:D6),0)","v":0}]

{"sheet":"2.Bontás, építőanyagok újraha","index":2,"n_rows":3,"n_cols":9,"rows_kept":3,"cut":false,"hidden":false,"merged":[]}
["Ssz.","Tételszám","Tétel szövege","Menny.","Egység","Anyag egységár","Díj egységre","Anyag összesen","Díj összesen"]
[1,"02-030-7.1","Vegyes építési- bontási törmelék felrakása szállítóeszközre, elszállítása",1,"kg",null,null,{"$f":"ROUND(F2*D2,0)","v":0},{"$f":"ROUND(G2*D2,0)","v":0}]
[null,null,"Munkanem összesen (HUF)",{"$nulls":4},{"$f":"ROUND(SUM(H2:H2),0)","v":0},{"$f":"ROUND(SUM(I2:I2),0)","v":0}]

{"sheet":"15.Zsaluzás és állványozás","index":3,"n_rows":3,"n_cols":9,"rows_kept":3,"cut":false,"hidden":false,"merged":[]}
["Ssz.","Tételszám","Tétel szövege","Menny.","Egység","Anyag egységár","Díj egységre","Anyag összesen","Díj összesen"]
[1,"15-012-1.2","Egy pallószintű belső állvány készítése pallóterítéssel, korláttal, lábdeszkával,  állványépítés MSZ- és alkalmazástechnikai kézikönyv szerint ",28,"m2",null,null,{"$f":"ROUND(F2*D2,0)","v":0},{"$f":"ROUND(G2*D2,0)","v":0}]
[null,null,"Munkanem összesen (HUF)",{"$nulls":4},{"$f":"ROUND(SUM(H2:H2),0)","v":0},{"$f":"ROUND(SUM(I2:I2),0)","v":0}]

{"sheet":"21.Irtás, föld- és sziklamunka","index":4,"n_rows":3,"n_cols":9,"rows_kept":3,"cut":false,"hidden":false,"merged":[]}
["Ssz.","Tételszám","Tétel szövege","Menny.","Egység","Anyag egységár","Díj egységre","Anyag összesen","Díj összesen"]
[1,"21-011-3.2.1","Bontási törmelék leszállítása lépcsőn keresztül kézi erővel, udvari depóniába",1,"kg",null,null,{"$f":"ROUND(F2*D2,0)","v":0},{"$f":"ROUND(G2*D2,0)","v":0}]
[null,null,"Munkanem összesen (HUF)",{"$nulls":4},{"$f":"ROUND(SUM(H2:H2),0)","v":0},{"$f":"ROUND(SUM(I2:I2),0)","v":0}]

{"sheet":"36.Vakolás és rabicolás","index":5,"n_rows":10,"n_cols":9,"rows_kept":10,"cut":false,"hidden":false,"merged":[]}
["Ssz.","Tételszám","Tétel szövege","Menny.","Egység","Anyag egységár","Díj egységre","Anyag összesen","Díj összesen"]
[1,"36-000-1.1.1.1","Salétromos vakolat leverése oldalfalról meglévő vastagságig falazó, cementes mészhabarcs",36,"m2",null,null,{"$f":"ROUND(F2*D2,0)","v":0},{"$f":"ROUND(G2*D2,0)","v":0}]
[2,"36-000-1.1.1","Vakolat leverése mennyezetről 1,5 cm vastagságig falazó, cementes mészhabarcs",28,"m2",null,null,0,0]
[3,"36-000-18","Téglafelület fugáinak tisztítása 2 cm mélységben",36,"m2",null,null,0,0]
[4,"36-002-11.1-0412852","Tapadóhíd képzése gyári zsákos gúzanyaggal, kézi erővel,",28,"m2",null,null,0,0]
[5,"36-003-2.1.1.1.1-0414710","Mennyezetvakolat készítése, kézi felhordással, zsákos kiszerelésű szárazhabarcsból, sima, normál mész-cement vakolat, 1 cm vastagságban, ",28,"m2",null,null,0,0]
[6,"36-003-11.1-0414911","Mennyezet vakolat simítása, előkevert gyári szárazhabarcsból, 5 mm vastagságig, kézi felhordással (a gyártó által megadott kg/m²/mm rétegvastagsággal)",28,"m2",null,null,0,0]
[7,"36-012-2.2.1.1-0415955","Szellőző, falszárító felújító vakolat készítése, erős (magas) só és nedvességtartalom esetén WTA rendszerben, kézi felhordással, szárazhabarcsból, felületelőkészítéssel (alapozó, előfröcskölő, gúz), alsó, felső vakolatréteggel, összesen 3 cm vastagságban, Baumit Sanova vakolat W, Cikkszám: 153103 + Baumit Sanova puffer vakolat, Cikkszám: 153102 + Baumit Sanova Vorspritzer Előfröcskölő, Cikkszám: 153105",36,"m2",null,null,0,0]
[8,"36-012-3-0415954","Falszárító, felújító vakolaton simítóvakolat készítése, 5 mm vastagságban, Baumit Sanova Feinputz, Cikkszám: 153116",36,"m2",null,null,0,0]
[null,null,"Munkanem összesen (HUF)",{"$nulls":4},{"$f":"ROUND(SUM(H2:H9),0)","v":0},{"$f":"ROUND(SUM(I2:I9),0)","v":0}]

{"sheet":"47.Felületképzés","index":6,"n_rows":8,"n_cols":9,"rows_kept":8,"cut":false,"hidden":false,"merged":[]}
["Ssz.","Tételszám","Tétel szövege","Menny.","Egység","Anyag egységár","Díj egységre","Anyag összesen","Díj összesen"]
[1,"47-000-1.3.1.1","Belső festéseknél felület előkészítése, részmunkák; vizes diszperziós falfesték lekaparása, bármilyen padozatú helységben, tagolatlan felületen",394,"m2",null,null,{"$f":"ROUND(F2*D2,0)","v":0},{"$f":"ROUND(G2*D2,0)","v":0}]
[2,"47-000-4.1.2","Alumíniumfelületek mázolásának előkészítő és részmunkái; régi olajfesték eltávolítása kaparással (raskettázás), ablakkeretről",25,"m2",null,null,0,0]
[3,"47-022-1.3-0140291","Alumíniumfelületek korróziógátló alapozása, kétkomponensű epoxi műgyanta festékkel, Katepox bevonóanyag A 300 + B 020 komponens",25,"m2",null,null,0,0]
[4,"47-022-11.1-0152361","Alumíniumfelületek közbenső festése, műgyantabázisú vizes, diszperziós festékkel, Trinát kolor univerzális festék, fehér EAN: 5996281035013",25,"m2",null,null,0,0]
[5,"47-022-21.1","Alumíniumfelületek átvonó festése, műgyantabázisú vizes, diszperziós zománccal",25,"m2",null,null,0,0]
[6,"47-011-15.1.2.1-0151174","Diszperziós festés (két rétegben) műanyag bázisú vizes-diszperziós  fehér vagy gyárilag színezett festékkel, új vagy régi lekapart, előkészített alapfelületen  vagy jól tapadó meglévő festékrétegen, beton felületen, két rétegben, tagolatlan sima felületen, Héra DISZPERZIT beltéri falfesték fehér, EAN: 5996281078317",3940,"m2",null,null,0,0]
[null,null,"Munkanem összesen (HUF)",{"$nulls":4},{"$f":"ROUND(SUM(H2:H7),0)","v":0},{"$f":"ROUND(SUM(I2:I7),0)","v":0}]